Cogmind - Beta 14 @@@ ROGUE MODE // 2024.10.03 @ 16:16:55 Player: Cazador Result: Destroyed by G-34 Mercenary with Small Laser Performance ------------- Evolutions (1) 500 Regions Visited (2) 400 Robots Destroyed (23) 115 Value Destroyed (678) 678 Prototype IDs (0) 0 Alien Tech Used (0) 0 Bonus (0) 0 TOTAL SCORE: 1693 Bonus ------- None Cogmind --------- Core Integrity 0/400 Matter 91/300 Energy 100/100 System Corruption 1% Temperature Cool (6) Movement Core (700) Ox13 Location -9/Materials Parts ------- > --- POWER (1) -------- (None) > --- PROPULSION (2) --- (None) > --- UTILITY (3) ------ High-capacity Storage Unit > --- WEAPON (3) ------- (None) > --- INVENTORY (20) --- Aluminum Leg Light Armor Plating Hardlight Generator Small Laser Beam Rifle Grenade Launcher Peak State ------------ > --- POWER ------------ Ion Engine > --- PROPULSION ------- Aluminum Leg Aluminum Leg > --- UTILITY ---------- Improved Heat Sink High-capacity Storage Unit Hardlight Generator > --- WEAPON ----------- EM Pulse Gun Particle Cannon Assault Rifle > --- INVENTORY -------- Aluminum Leg Light Armor Plating Hardlight Generator Small Laser Beam Rifle Grenade Launcher Rocket Launcher [Rating: 15] Favorites ----------- Power Ion Engine Engine Ion Engine Propulsion Light Treads Treads Light Treads Leg Aluminum Leg Utility Improved Heat Sink Device Improved Heat Sink Storage Small Storage Unit Weapon EM Pulse Gun Energy Gun EM Pulse Gun Energy Cannon Particle Cannon Ballistic Gun Assault Rifle Launcher Grenade Launcher Build | -11 -10 -9 ------- Run | Yrd Mat Mat Slots Evolved 2 | . . 2 Power . | . . . Propulsion . | . . . Utility 1 | . . 1 Weapon 1 | . . 1 Parts Attached 36 | 5 8 23 Power 5 | . 3 2 Engine 5 | . 3 2 Core . | . . . Reactor . | . . . Propulsion 6 | 2 1 3 Treads 4 | 2 1 1 Leg 2 | . . 2 Wheel . | . . . Hover . | . . . Flight . | . . . Utility 9 | 1 1 7 Device 7 | . 1 6 Storage 2 | 1 . 1 Processor . | . . . Hackware . | . . . Protection . | . . . Artifact . | . . . Weapon 16 | 2 3 11 Energy Gun 7 | 1 1 5 Energy Cannon 1 | . . 1 Ballistic Gun 4 | 1 2 1 Ballistic Cannon . | . . . Launcher 4 | . . 4 Special Weapon . | . . . Impact Weapon . | . . . Slashing Weapon . | . . . Piercing Weapon . | . . . Special Melee Weapon . | . . . Unidentified Prototypes . | . . . Parts Lost 12 | . . 12 Power 1 | . . 1 Propulsion 4 | . . 4 Utility 2 | . . 2 Weapon 5 | . . 5 Highest Loss Streak 9 | . . 9 To Critical Strikes 1 | . . 1 Average Slot Usage (%) 89 | . 97 82 Engine 10 | . 12 8 Treads 17 | . 28 8 Leg 4 | . . 9 Device 15 | . 12 18 Storage 12 | . 14 11 Energy Gun 11 | . 9 12 Energy Cannon 1 | . . 3 Ballistic Gun 12 | . 18 8 Peak Build Rating 15 | 5 10 15 Average Rating 9 | 4 8 11 On Entrance 5 | . 5 10 Naked Turns . | . . . Heaviest Build 60 | 8 15 60 Greatest Support 46 | 40 40 46 Greatest Overweight (x) 17 | . . 17 Average Overweight (x) . | . . 2 Largest Inventory Capacity 20 | 8 8 20 Average Capacity 13 | 7 8 20 Most Carried 10 | 1 8 10 Average Carried 4 | . 4 5 Final Capacity 20 | 8 8 20 Final Carried 8 | 1 8 6 Class Distribution -------------------- 67% | Mutant 19% | Scavenger-Tank 9% | Tank 4% | Gunner Dominant Class ---------------- Mutant | -10/Materials Scavenger-Tank | -9/Materials Resources | -11 -10 -9 ----------- Run | Yrd Mat Mat Matter Collected 657 | 250 68 339 Remotely . | . . . Salvage Created 731 | . 320 411 Parts 61 | . 20 41 Haulers Intercepted . | . . . Recyclers Shooed 1 | . . 1 Parts Field Recycled . | . . . Retrieved Matter . | . . . Parts Self-Destructed . | . . . Prevented . | . . . Kills | -11 -10 -9 ------- Run | Yrd Mat Mat Combat Hostiles Destroyed 19 | . 7 12 Guns 7 | . 5 2 Cannons 2 | . . 2 AOE 10 | . 2 8 Classes Destroyed 8 | . 2 6 Builder 1 | . . 1 Tunneler 1 | . . 1 Recycler 1 | . . 1 Watcher 1 | . 1 . Swarmer 3 | . . 3 Grunt 13 | . 7 6 Brawler 1 | . . 1 Sentry 2 | . . 2 Best Kill Streak 6 | . 2 6 Combat Bots Only 5 | . 2 5 Max Kills in Single Turn 3 | . 2 3 Gunslinging 1 | . 1 . Exploded 3 | . 2 3 Melee . | . . . Uniques/NPCs Destroyed . | . . . Combat | -11 -10 -9 -------- Run | Yrd Mat Mat Hostile Shots Fired 238 | . 44 194 Missed 76 | . 14 62 Damage Taken 1967 | . 362 1605 Core 494 | . 93 401 Absorbed by Shields 180 | . . 180 Core Remaining (%) 81 | 100 62 . Volleys Fired 59 | . 27 32 Largest 3 | . 2 3 Hottest 128 | . 60 128 Shots Fired 123 | . 54 69 Gun 96 | . 54 42 Cannon 7 | . . 7 Launcher 20 | . . 20 Special . | . . . Kinetic 60 | . 41 19 Thermal 7 | . . 7 Explosive 20 | . . 20 Electromagnetic 36 | . 13 23 Robot Hit Streak 14 | . 8 14 Robot Miss Streak 4 | . 2 4 Penetration Max . | . . . Secondary Targets 2 | . 2 . Max Gunslinging Chain 1 | . 1 . Shots Hit Robots 57 | . 35 22 Core Hits 36 | . 16 20 Critical Kills . | . . . Critical Parts Destroyed 1 | . 1 . Critical Strikes 1 | . 1 . Destroy 1 | . 1 . Melee Attacks . | . . . Impact . | . . . Slashing . | . . . Piercing . | . . . Sneak Attacks . | . . . Combat Hostiles . | . . . Follow-up Attacks . | . . . Damage Inflicted 1575 | . 530 1045 Guns 633 | . 461 172 Cannons 81 | . . 81 Explosions 854 | . 69 785 Melee . | . . . Ramming 7 | . . 7 Kinetic 392 | . 321 71 Thermal 232 | . 69 163 Explosive 703 | . . 703 Electromagnetic 241 | . 140 101 Impact . | . . . Slashing . | . . . Piercing . | . . . Highest Corruption 1 | . . 1 Average Corruption 1 | . . 1 Corruption Purged . | . . . Corruption Blocked . | . . . Effects 1 | . . 1 Matter Fused 1 | . . 1 Overload Shots . | . . . Overflow Damage 33 | . . 33 Projectiles . | . . . Explosions 33 | . . 33 Melee . | . . . Knockbacks 1 | . . 1 Impact 1 | . . 1 Kinetic . | . . . Secondary . | . . . Self-Inflicted Damage 65 | . . 65 Shots 3 | . . 3 Rammed 1 | . . 1 Targets Rammed 2 | . . 2 Kicked 1 | . . 1 Crushed . | . . . Highest Temperature 135 | . 35 135 Average Temperature 31 | . 15 34 Received Heat Transfer 801 | . 207 594 Siege Activations . | . . . Robots Corrupted . | . . . Combat Hostiles . | . . . Parts Fried 1 | . 1 . Impact Corruptions . | . . . Robots Melted . | . . . Combat Hostiles . | . . . Parts Melted . | . . . Heat Transferred 298 | . 50 248 Parts Sabotaged . | . . . Parts Stolen . | . . . Parts Stripped . | . . . Power Chain Reactions 3 | . 1 2 Alert | -11 -10 -9 ------- Run | Yrd Mat Mat Peak Influence 213 | . 82 213 Initial 27 | . . 27 Average 63 | . 53 81 Maximum Alert Level 1 | . . 1 Low Security (%) 94 | 100 100 88 Level 1 5 | . . 11 Level 2 . | . . . Level 3 . | . . . Level 4 . | . . . Level 5 . | . . . High Security . | . . . Max Security . | . . . Squads Dispatched 5 | . 3 2 Investigation 1 | . 1 . Extermination . | . . . Reinforcement 4 | . 2 2 Assault . | . . . Garrison . | . . . Intercept . | . . . Searches Triggered . | . . . Construction Impeded 1 | . . 1 Haulers Reinforced . | . . . Active Scanning Responses . | . . . Cargo Convoy Interrupts . | . . . Stealth | -11 -10 -9 --------- Run | Yrd Mat Mat Distress Signals 3 | . 1 2 Communications Jammed . | . . . Distress Signals . | . . . Times Spotted 34 | . 15 19 Peak Tracking Total 7 | . 4 7 Tactical Retreats 1 | . . 1 Traps | -11 -10 -9 ------- Run | Yrd Mat Mat Traps Triggered 1 | . 1 . Indirectly . | . . . Trap Hack Attempts . | . . . Triggered . | . . . Disarmed . | . . . Reprogrammed . | . . . Reused . | . . . Traps Extracted . | . . . Installed . | . . . Triggered . | . . . Machines | -11 -10 -9 ---------- Run | Yrd Mat Mat Machines Disabled 2 | . . 2 Max in Single Turn 1 | . . 1 Machines Repaired . | . . . Machines Dismantled . | . . . Machines Sabotaged . | . . . Overloaded Fab Kills . | . . . Hacking | -11 -10 -9 --------- Run | Yrd Mat Mat Machines Accessed . | . . . Terminals . | . . . Fabricators . | . . . Repair Stations . | . . . Recycling Units . | . . . Scanalyzers . | . . . Garrison Access . | . . . Total Hacks . | . . . Successful . | . . . Failed . | . . . Catastrophic . | . . . Database Lockouts . | . . . Manual . | . . . Terminals . | . . . Fabricators . | . . . Repair Stations . | . . . Recycling Units . | . . . Scanalyzers . | . . . Garrison Access . | . . . Terminal Hacks . | . . . Fabricator Hacks . | . . . Repair Station Hacks . | . . . Recycling Unit Hacks . | . . . Scanalyzer . | . . . Garrison Access Hacks . | . . . Unauthorized Hacks . | . . . Terminals . | . . . Fabricators . | . . . Repair Stations . | . . . Recycling Units . | . . . Scanalyzers . | . . . Garrison Access . | . . . Data Cores Recovered . | . . . Used . | . . . Hacking Detections . | . . . Full Trace Events . | . . . Feedback Events . | . . . Feedback Blocked . | . . . Robot Schematics Acquired . | . . . Robots Built . | . . . Authchips . | . . . Time . | . . . Total Robot Build Rating . | . . . Part Schematics Acquired . | . . . Parts Built . | . . . Authchips . | . . . Time . | . . . Total Part Build Rating . | . . . Parts Repaired . | . . . Time . | . . . Parts Recycled . | . . . Recycled Matter . | . . . Retrieved Matter . | . . . Retrieved Components . | . . . Parts Scanalyzed . | . . . Part Schematics Acquired . | . . . Parts Damaged . | . . . Bothacking | -11 -10 -9 ------------ Run | Yrd Mat Mat Used RIF Installer . | . . . Robots Hacked . | . . . Non-combat . | . . . Combat . | . . . Robot Hacks Applied . | . . . Relay Couplers Released . | . . . Fabnet Peak Effective % . | . . . Robots Rewired . | . . . Allies Hacked . | . . . Hacks Repelled . | . . . Allies | -11 -10 -9 -------- Run | Yrd Mat Mat Total Allies . | . . . Largest Group . | . . . Highest-Rated Group . | . . . Highest-Rated Ally . | . . . Total Orders . | . . . Ally Attacks . | . . . Total Damage . | . . . Kills . | . . . Allies Corrupted . | . . . Allies Melted . | . . . Intel | -11 -10 -9 ------- Run | Yrd Mat Mat Robot Analysis Total . | . . . Derelict Logs Recovered . | . . . Drone Launches . | . . . Drone Recoveries . | . . . Exploration | -11 -10 -9 ------------- Run | Yrd Mat Mat Turns Passed 2204 | 167 977 1060 Spaces Moved 901 | 100 537 264 Core 16 | 2 . 14 Treads 750 | 98 537 115 Legs 135 | . . 135 Wheels . | . . . Hover . | . . . Flight . | . . . Fastest Speed 50 | 50 160 240 Average Speed 197 | 157 160 288 Slowest Speed 900 | 160 160 900 Overloaded Moves . | . . . Propulsion Burnouts . | . . . Robots Hopped . | . . . Cave-ins Triggered . | . . . Exploration Rate (%) 32 | 4 74 20 Regions Visited 2 Branch Regions . Pre-discovered Areas . | . . . Known Exits Taken . | . . . Unknown Exits Taken 2 | 1 1 . Scrap Searched . | . . . Spaces Dug . | . . . Terrain Destroyed 143 | . 2 141 Melee . | . . . Projectile 1 | . . 1 AOE 142 | . 2 140 Terrain Rammed . | . . . Walls Destroyed . | . . . Machines Disabled . | . . . Actions | -11 -10 -9 --------- Run | Yrd Mat Mat Total 1222 | 107 606 509 Wait 169 | 2 13 154 Move 899 | 99 536 264 Hop . | . . . Pick Up 18 | 1 10 7 Fast Attach 17 | 5 5 7 Attach 16 | . 1 15 Detach 20 | . 4 16 Swap 3 | . 2 1 Drop 19 | . 8 11 Fire 59 | . 27 32 Melee . | . . . Ram . | . . . Kick 1 | . . 1 Crush 1 | . . 1 Escape Stasis . | . . . Rewire . | . . . Trap . | . . . Miscellaneous . | . . . Route ------- -11/Scrapyard -10/Materials (discovered 4 exits: [*Mat x3] / [*Min]) -9/Materials History --------- Turn | Location | Event 51 | -11/Scrapyard | Discovered new exit (range 16) 168 | -11/Scrapyard | Entered Materials 311 | -10/Materials | Build established: Mutant 356 | -10/Materials | Discovered new exit (range 15) 371 | -10/Materials | Discovered new exit (range 15) 557 | -10/Materials | Discovered new exit (range 14) 1068 | -10/Materials | Discovered new exit (range 8) 1145 | -10/Materials | Entered another Materials area 1145 | -9/Materials | Evolved 2 slots: Utility x1, Weapon x1 1990 | -9/Materials | Build established: Scavenger-Tank 2163 | -9/Materials | Core integrity fell below 50% 2195 | -9/Materials | Core integrity fell below 20% 2205 | -9/Materials | Destroyed by G-34 Mercenary with Small Laser Last Messages --------------- 02163_ G-34 Mercenary destroyed. 02164_ Rocket Launcher destroyed. 02164_ Hardlight Generator destroyed. 02165_ The unstable cave ceiling collapses. 02168_ Acquired 45 matter. 02169_ The unstable cave ceiling collapses. 02174_ K-01 Serf collects debris. 02177_ The unstable cave ceiling collapses. 02183_ Aluminum Leg destroyed. 02185_ K-01 Serf collects debris. 02187_ The unstable cave ceiling collapses. 02193_ K-01 Serf collects debris. 02195_ The unstable cave ceiling collapses. 02196_ K-01 Serf collects debris. 02198_ Acquired 3 matter. 02199_ K-01 Serf collects debris. 02200_ The unstable cave ceiling collapses. 02200_ K-01 Serf crushed by falling debris. 02200_ K-01 Serf destroyed. 02205_ The unstable cave ceiling collapses. Map ----- +----------------------------------------------------+ | ?????????????????????????????????????????????????? | | ?????????????????????????????????????????????????? | | ??????????????????????? ???????????????????????? | | ??????????????????????? #??????????????????????? | | ??????????????????????? #??????????????????????? | | ??????????????????????# #??????????????????????? | | ??????????????????????# #??????????????????????? | | ??????????????????????# #??????????????????????? | | ??????????????????????# #?""???????????????????? | | ?????????????????""""?# #? ??????????????????? | | ?????????????????""""?# # """ ?????????????????? | | ??????????????????""" # # """??????????????????? | | ??????????????????? # # ""???????????????????? | | ???????????????????? # g# ????????????????????? | | ????????????????????? #gg ##+#########??????????? | | ?????????????????????# ??????????? | | ?????????????????????# ??????????? | | ?????????????????????# ??????????? | | ?????????????????????# #####?????????????????? | | ?????????????????????# #?????????????????????? | | ????????????????????### ##????????????????????? | | ????????????????????# #????????????????????? | | ????????????????????# ##???????????????????? | | ????????????????????# # #???????????????????? | | ????????????????????# # #???????????????????? | | ???????????????????# # @# #???????????????????? | | ???????????????????# # ??????????????????? | | ???????????????????## # # # #?????????????????? | | ????????????????????# t # # #?????????????????? | | ???????????????????? # ! ########## ??? | | ?????????#?????????### |% ??? | | ????????## ????????# = ??? | | ????????# ###### ??? | | ????????# ### ##### ??? | | ????????+ ! ##???#?????? " ???? | | ????????# !* = #?????????????? %" ???? | | ????????# ####### #?????????????????#????? | | ????????####????????## ########????????????????? | | ?????????????????????# # #????????????????? | | ?????????????????????# # #????????????????? | | ?????????????????????# + #????????????????? | | ?????????????????????# # #????????????????? | | ?????????????????????# ########????????????????? | | ?????????????????????# ########????????????????? | | ?????????????????????# # #????????????????? | | ?????????????????????# # #????????????????? | | ?????????????????????#% # """ #????????????????? | | ???????????????????###! *+ """ #????????????????? | | ???????????????????# #! # """ #????????????????? | | ?????????????????### # *[# #????????????????? | +----------------------------------------------------+ Best States ------------- Heat Dissipation 42 Energy Generation 10 Energy Capacity 250 Matter Stores 300 Matter Capacity 300 Sight Range 16 Terrain Scan Density 10 Additional Mass Support 6 Evasion (%) 40 Recoil Reduction 2 Item Schematics ----------------- None Robot Schematics ------------------ None Fabricated ------------ Nothing Alien Tech Used ----------------- None Achievements -------------- None Challenges ------------ None Game ------ Seed MachineDataMachine Manual? 0 Play Time 00:21:03 Cumulative 2.7 hours Start 2024.09.30 @ 21:34:57 End 2024.10.03 @ 16:16:55 Sessions 3 Manual Loads 0 Difficulty Rogue Special Mode None Game No. 11 Rogue 11 Adventurer 0 Explorer 0 Win Type - Total 0 Types 0/0/0/0/0/0/0/0/0 Lore% 0 Gallery% 8 Achievement% 7 Wizard Run 0 Options --------- Layout 1 ASCII 0 Keyboard 1 Movement Numpad Keybinds 0 Fullscreen 2 Font 32/SmallcapsGlow Map View 50x35 Zoom Use 0% Tactical HUD 1 Map Filters NONE Filters NONE Steam 1 RUN: 829026a4-1829-4cef-8ff8-c49daf3d8d74